[Event "40th Cappelle Open 2024"]
[Site "Cappelle-la-Grande"]
[Date "2024.03.06"]
[Round "6.7"]
[White "Roshka, Yevgeniy"]
[Black "Agdelen, Huseyin Can"]
[Result "1/2-1/2"]
[ECO "E11"]
[WhiteElo "2468"]
[BlackElo "2408"]
[Annotator "TA"]
[PlyCount "131"]
[EventDate "2024.03.02"]
[EventType "swiss"]
[EventCountry "FRA"]
[SourceTitle "playchess.com"]
[Source "ChessBase"]
[SourceQuality "1"]
[TimeControl "40/5400+30:1800+30"]

{[%evp 16,131,14,0,0,0,0,-30,-15,-30,-31,-18,0,-6,-8,-14,-7,-32,-34,-30,-32,-33,-36,-38,-39,-32,-29,-29,-29,-33,-29,-44,-37,-44,-44,-66,-56,-55,-53,-62,-49,-59,-37,-45,-34,-37,-37,-44,-48,-51,-42,-42,-44,-104,-46,-56,-58,-83,-75,-70,0,-89,0,-81,-69,-66,-66,-77,-68,-66,-62,-59,0,0,0,0,0,0,95,0,0,0,90,0,0,-8,0,0,0,0,0,0,0,-114,-113,-117,-118,-184,-155,-375,-389,-389,-389,-372,-183,-158,-69,-218,-218,-181,-35,-144,-14,-22,0,-100,0,-13]} 1. d4 {[%emt 0:05:10]} d5 {[%emt 0:00:34]} 2. c4 {[%emt 0:00:05]} e6 {[%emt 0:00:05]} 3. Nf3 {[%emt 0:00:03]} Nf6 {[%emt 0:00:19]} 4. g3 {[%emt 0:00:04]} Bb4+ {[%emt 0:03:01]} 5. Bd2 {[%emt 0:00:06]} Be7 {[%emt 0:00:05]} 6. Qc2 {[%emt 0:00:03]} O-O {[%emt 0:02:34]} 7. Bg2 {[%emt 0:00:02]} c6 {[%emt 0:01:09]} 8. O-O {[%emt 0:00:05]} Nbd7 {[%emt 0:01:53]} 9. Bf4 {[%emt 0:00:38]} b6 {[%emt 0:02:37]} 10. Rc1 {[%emt 0:13:17]} Bb7 {[%emt 0:13:13]} 11. Nbd2 {[%emt 0:00:04]} Nh5 {[%emt 0:15:10] Schwarz hat minimalen Vorteil.} 12. cxd5 {[%emt 0:02:32]} Nxf4 {[%emt 0:06:40]} 13. gxf4 {[%emt 0:01:09]} cxd5 {[%emt 0:04:00]} 14. Qc7 {[%emt 0:02:39]} Rb8 {[%emt 0:11:50]} 15. e3 {[%emt 0:06:15]} Nf6 {[%emt 0:04:35]} 16. Ne5 {[%emt 0:01:31]} Qxc7 {[%emt 0:00:58]} 17. Rxc7 {[%emt 0:00:06]} Bd6 {[%emt 0:00:04]} 18. Rc2 {[%emt 0:00:14]} Rbc8 {[%emt 0:00:40]} 19. Rac1 {[%emt 0:00:06]} Rxc2 {[%emt 0:00:12]} 20. Rxc2 {[%emt 0:00:03]} Rc8 {[%emt 0:00:32]} 21. Rxc8+ {[%emt 0:00:24]} Bxc8 {[%emt 0:00:02]} 22. Bf1 {[%emt 0:03:13]} a6 {[%emt 0:03:40]} 23. Bd3 {[%emt 0:00:17]} g6 {[%emt 0:02:13]} 24. Ndf3 {[%emt 0:00:18]} Ne8 {[%emt 0:00:14]} 25. h4 {[%emt 0:07:05]} f6 {[%emt 0:05:14]} 26. Ng4 {[%emt 0:00:04]} Kg7 {[%emt 0:00:04]} 27. Ngh2 {[%emt 0:02:27]} h5 {[%emt 0:00:56]} 28. Nf1 {[%emt 0:00:08]} Kf7 {[%emt 0:00:13]} 29. Ng3 {[%emt 0:00:32]} Ng7 {[%emt 0:00:10]} 30. Kf1 {[%emt 0:00:29]} Bb7 {[%emt 0:02:20]} 31. Kg2 {[%emt 0:00:32]} Ne8 {[%emt 0:00:13]} 32. Ne2 {[%emt 0:01:28]} Bc7 {[%emt 0:03:10]} 33. Nd2 {[%emt 0:00:41]} Nd6 {[%emt 0:01:06]} 34. f3 {[%emt 0:00:48]} (34. Kg3 $15) 34... Nc8 {[%emt 0:03:42]} (34... b5 $17) 35. Kf2 {[%emt 0:04:36]} Ne7 {[%emt 0:00:25]} 36. e4 {[%emt 0:03:52]} Bd8 {[%emt 0:06:09]} 37. Kg3 {[%emt 0:12:26]} Bc7 {[%emt 0:00:20]} 38. Kf2 $1 {[%emt 0:04:36]} Bd8 {[%emt 0:00:02]} (38... f5 $17) 39. f5 {[%emt 0:12:27]} exf5 $17 {[%emt 0:02:17]} 40. exf5 {[%emt 0:00:02]} g5 $1 {[%emt 0:00:18]} (40... Nxf5 $6 41. Bxf5 gxf5 42. Nf4 $14) (40... gxf5 41. Nf1 $11) 41. Nf1 {[%emt 0:33:28]} Bc8 {[%emt 0:35:55]} 42. Ne3 {[%emt 0:00:17]} b5 $1 {[%emt 0:00:00]} 43. f4 {[%emt 0:00:00]} gxf4 {[%emt 0:00:00]} (43... g4 $15) 44. Nxf4 $11 {[%emt 0:00:00]} Bb6 {[%emt 0:00:00]} 45. Ne2 $1 {[%emt 0:00:00]} Kg7 {[%emt 0:00:00]} 46. Kf3 {[%emt 0:00:00]} Nc6 {[%emt 0:00:00]} (46... Ba7 $11 {hält das Gleichgewicht.}) 47. Nc2 {[%emt 0:00:00]} (47. Nxd5 $16 Ba7 (47... Nxd4+ 48. Ke3 $16) 48. Ke3) 47... Ne7 {[%emt 0:00:00]} 48. Ne3 {[%emt 0:00:00]} Nc6 {[%emt 0:00:00]} (48... Ba7 $11 {bleibt in der Remisbreite.}) 49. Nc2 {[%emt 0:00:00]} (49. Nxd5 $16 Ba7 (49... Nxd4+ 50. Ke3 $16) 50. Ke3) 49... Ne7 {[%emt 0:00:00]} 50. Nf4 {[%emt 0:00:00]} Nxf5 {[%emt 0:02:35]} 51. Bxf5 {[%emt 0:00:00]} Bxf5 {[%emt 0:00:01]} 52. Nxd5 {[%emt 0:00:00][%mdl 4096] Endspiel. KBB-KNN} Ba7 {[%emt 0:02:01]} 53. Nce3 {[%emt 0:00:00]} Bb1 {[%emt 0:02:06]} 54. Ne7 {[%emt 0:04:32]} (54. Nc3 $1 $11 Bg6 55. Ne2) 54... Bxa2 $17 {[%emt 0:00:37][%cal Oa7b6]} (54... Bxd4 55. N7f5+ Kf7 56. Nxd4 $18) 55. Nc6 {[%emt 0:01:23]} Bb6 {[%emt 0:00:08]} 56. Ke4 {[%emt 0:00:04]} (56. Nb4 $17 Be6 57. Ke4) 56... Kf7 {[%emt 0:00:22]} 57. Nb4 $2 {[%emt 0:02:26]} (57. Ng2 $17) 57... Bb1+ $19 {[%emt 0:00:13]} 58. Kd5 {[%emt 0:00:10]} f5 {[%emt 0:00:46]} ({Weniger gut wäre} 58... a5 59. Nc6 $19) 59. Nxa6 {[%emt 0:00:35]} Kf6 {[%emt 0:01:16]} (59... f4 $142 60. Nd1 Bd8) 60. Nc5 {[%emt 0:00:14]} Ba5 {[%emt 0:00:35]} (60... f4 $17 61. Nf1 Kf5) 61. Nd7+ {[%emt 0:00:44]} (61. Kd6 $15) 61... Ke7 {[%emt 0:00:05]} 62. Ne5 {[%emt 0:00:05] Schwarz muss nun Nc6+ beachten.} Bb6 {[%emt 0:00:54]} (62... Be4+ $19 63. Kc5 Ke6) 63. Nc6+ {[%emt 0:00:43] [#]} (63. Ng6+ $1 $15 Kf6 64. Nf4) 63... Kd7 {[%emt 0:00:32]} (63... Ke8 $1 $17 {Zielt auf ...Be4+ ab.} 64. Kd6 f4) 64. Ne5+ $11 {[%emt 0:00:14]} Ke7 {[%emt 0:00:01]} (64... Kc7 $11 65. Ng6 Kb8) 65. Nc6+ $17 {[%emt 0:00:52] [#]} Kd7 {[%emt 0:00:13]} ({Besser ist} 65... Ke8 $1 $17 {Droht stark ...Be4+.} 66. Ne5 Ba2+ 67. Kd6 Bxd4 68. Nxf5 Bxb2 69. Ng7+ Kf8 70. Nxh5 b4) 66. Ne5+ {[%emt 0:00:01] Gewichteter Fehlerwert: Weiß=0.25 (präzise) /Schwarz=0.25 (präzise) .  Verlustzug:     	Weiß=1     	---        Fehler:       	Weiß=8     	Schwarz=11    Ungenau:       	Weiß=1     	---        OK:         	Weiß=17    	Schwarz=20    Bester:       	Weiß=5     	Schwarz=2     Stark:        	Weiß=2     	Schwarz=2} 1/2-1/2

[Event "40th Cappelle Open 2024"]
[Site "Cappelle-la-Grande"]
[Date "2024.03.06"]
[Round "6.8"]
[White "Degraeve, Jean-Marc"]
[Black "Zylka, Stanislaw"]
[Result "1/2-1/2"]
[ECO "C02"]
[WhiteElo "2455"]
[BlackElo "2401"]
[Annotator "RC"]
[PlyCount "156"]
[EventDate "2024.03.02"]
[EventType "swiss"]
[EventCountry "FRA"]
[SourceTitle "playchess.com"]
[Source "ChessBase"]
[SourceQuality "1"]
[TimeControl "40/5400+30:1800+30"]

1. e4 {[%emt 0:00:04]} e6 {[%emt 0:00:08]} 2. d4 {[%emt 0:00:08]} d5 {[%emt 0:00:06]} 3. e5 {[%emt 0:00:05]} c5 {[%emt 0:00:24]} 4. c3 {[%emt 0:00:05]} Qb6 {[%emt 0:00:19]} 5. Nf3 {[%emt 0:00:10]} Bd7 {[%emt 0:00:13]} 6. a3 {[%emt 0:06:00]} c4 {[%emt 0:00:19]} 7. g3 {[%emt 0:02:26]} Nc6 {[%emt 0:00:13]} 8. h4 {[%emt 0:01:07]} Na5 {[%emt 0:00:24]} 9. Nbd2 {[%emt 0:00:09]} Ne7 {[%emt 0:01:01]} 10. Bh3 {[%emt 0:00:20]} h6 {[%emt 0:00:39]} 11. O-O {[%emt 0:00:54]} O-O-O {[%emt 0:02:08]} 12. Re1 {[%emt 0:00:20]} Nec6 {[%emt 0:05:34]} 13. Rb1 {[%emt 0:04:57]} Qc7 {[%emt 0:05:04]} 14. Nf1 {[%emt 0:02:00]} Be7 {[%emt 0:02:19]} 15. Be3 {[%emt 0:21:21]} Kb8 {[%emt 0:09:45]} 16. N3h2 {[%emt 0:13:21]} Ka8 {[%emt 0:04:21]} 17. h5 {[%emt 0:00:07]} Rdg8 {[%emt 0:17:13]} 18. Ng4 {[%emt 0:03:06]} Bd8 {[%emt 0:02:39]} 19. Bf4 {[%emt 0:01:14]} Bg5 {[%emt 0:02:43]} 20. Qd2 {[%emt 0:14:35]} Qd8 {[%emt 0:12:02]} 21. Be3 {[%emt 0:02:37]} Nb3 {[%emt 0:10:49]} 22. Qe2 {[%emt 0:00:33]} Be7 {[%emt 0:01:12]} 23. f4 {[%emt 0:02:24]} f5 {[%emt 0:01:43]} 24. Nf2 {[%emt 0:03:11]} g5 {[%emt 0:00:27]} 25. hxg6 {[%emt 0:00:08]} Rxg6 {[%emt 0:00:07]} 26. Kh2 {[%emt 0:00:27]} Qg8 {[%emt 0:03:37]} 27. Qf3 {[%emt 0:05:50]} Qg7 {[%emt 0:01:19]} 28. Nd2 {[%emt 0:00:31]} Nxd2 {[%emt 0:01:43]} 29. Bxd2 {[%emt 0:00:02]} Rg8 {[%emt 0:16:29]} 30. Rg1 {[%emt 0:00:10]} Bh4 {[%emt 0:00:00]} 31. Nh1 {[%emt 0:00:07]} Na5 {[%emt 0:00:00]} 32. Be3 {[%emt 0:06:08]} Be7 {[%emt 0:00:00]} 33. Nf2 {[%emt 0:01:38]} Ba4 {[%emt 0:00:00]} 34. Rbc1 {[%emt 0:00:11]} Be8 {[%emt 0:00:00]} 35. Rc2 {[%emt 0:05:41]} Ba4 {[%emt 0:00:00]} 36. Re2 {[%emt 0:00:30]} h5 {[%emt 0:00:00]} 37. Nh1 {[%emt 0:02:12]} Qh7 {[%emt 0:00:00]} 38. Nf2 {[%emt 0:00:56]} Nc6 {[%emt 0:00:00]} 39. Kg2 {[%emt 0:02:12]} Bh4 {[%emt 0:00:00]} 40. Nh1 {[%emt 0:00:36]} Bxg3 {[%emt 0:00:00]} 41. Kf1 {[%emt 0:02:25]} Bh4 {[%emt 0:03:33]} 42. Rxg6 {[%emt 0:00:12]} Rxg6 {[%emt 0:00:10]} 43. Rh2 {[%emt 0:00:06]} Bd8 {[%emt 0:00:51]} 44. Ng3 {[%emt 0:00:12]} h4 {[%emt 0:00:37]} 45. Nxf5 {[%emt 0:13:36]} exf5 {[%emt 0:00:54]} 46. Bxf5 {[%emt 0:00:09]} Rg1+ {[%emt 0:09:41]} 47. Kxg1 {[%emt 0:00:14]} Qxf5 {[%emt 0:00:06]} 48. Rg2 {[%emt 0:00:40]} h3 {[%emt 0:23:38]} 49. Rg3 {[%emt 0:01:49]} Qb1+ {[%emt 0:00:00]} 50. Kh2 {[%emt 0:00:11]} Qxb2+ {[%emt 0:00:00]} 51. Kxh3 {[%emt 0:00:23]} Bc2 {[%emt 0:00:00]} 52. f5 {[%emt 0:00:48]} Qb1 {[%emt 0:00:00]} 53. f6 {[%emt 0:01:01]} Be4 {[%emt 0:00:00]} 54. Qf4 {[%emt 0:00:35]} a5 {[%emt 0:00:00]} 55. Rg1 {[%emt 0:00:50]} Qd3 {[%emt 0:01:54]} 56. Kg4 {[%emt 0:04:37]} Ka7 {[%emt 0:00:12]} 57. Kg5 {[%emt 0:01:25]} Qxc3 {[%emt 0:00:21]} 58. e6 {[%emt 0:00:38]} Qxa3 {[%emt 0:00:23]} 59. Rf1 {[%emt 0:07:58]} c3 {[%emt 0:01:48]} 60. Kg4 {[%emt 0:01:18]} c2 {[%emt 0:00:25]} 61. f7 {[%emt 0:00:44]} Be7 {[%emt 0:00:03]} 62. Bc1 {[%emt 0:00:31]} Qd3 {[%emt 0:00:43]} 63. f8=Q {[%emt 0:00:23]} Qe2+ {[%emt 0:00:51]} 64. Qf3 {[%emt 0:02:11]} Bxf3+ {[%emt 0:00:13]} 65. Qxf3 {[%emt 0:00:02]} Qxe6+ {[%emt 0:00:10]} 66. Qf5 {[%emt 0:00:07]} Qxf5+ {[%emt 0:00:49]} 67. Kxf5 {[%emt 0:00:56]} Nxd4+ {[%emt 0:00:51]} 68. Ke5 {[%emt 0:00:05]} Ne2 {[%emt 0:00:41]} 69. Kxd5 {[%emt 0:00:06]} Bb4 {[%emt 0:00:33]} 70. Kc4 {[%emt 0:00:18]} Ka6 {[%emt 0:00:22]} 71. Kd3 {[%emt 0:00:22]} Nxc1+ {[%emt 0:00:07]} 72. Rxc1 {[%emt 0:00:05]} Kb5 {[%emt 0:00:21]} 73. Kxc2 {[%emt 0:00:22]} a4 {[%emt 0:00:22]} 74. Rg1 {[%emt 0:00:22]} Bc5 {[%emt 0:00:12]} 75. Rg4 {[%emt 0:00:13]} Ka5 {[%emt 0:00:16]} 76. Rg5 {[%emt 0:00:32]} Kb4 {[%emt 0:00:27]} 77. Rg4+ {[%emt 0:00:07]} Kb5 {[%emt 0:00:12]} 78. Rh4 {[%emt 0:00:18]} b6 {[%emt 0:00:34]} 1/2-1/2

[Event "40th Cappelle Open 2024"]
[Site "Cappelle-la-Grande"]
[Date "2024.03.06"]
[Round "6.9"]
[White "Pacher, Milan"]
[Black "Duboue, Peio"]
[Result "1-0"]
[ECO "D28"]
[WhiteElo "2393"]
[BlackElo "2454"]
[Annotator "TA"]
[PlyCount "123"]
[EventDate "2024.03.02"]
[EventType "swiss"]
[EventCountry "FRA"]
[SourceTitle "playchess.com"]
[Source "ChessBase"]
[SourceQuality "1"]
[TimeControl "40/5400+30:1800+30"]

{[%evp 62,123,0,0,0,0,0,0,0,0,0,0,0,0,392,0,0,-774,0,0,0,0,0,0,0,0,0,0,0,0,0,0,690,675,668,648,637,625,1403,1403,1325,1323,29959,29953,12842,3580,29980,29981,29981,29982,29980,29979,29973,583,29967,29969,6285,2673,29977,29978,29979,29980,29984,29985]} 1. d4 {[%emt 0:00:04]} d5 {[%emt 0:06:26]} 2. c4 {[%emt 0:00:02]} dxc4 {[%emt 0:00:02]} 3. Nf3 {[%emt 0:00:04]} Nf6 {[%emt 0:00:04]} 4. e3 {[%emt 0:00:04]} e6 {[%emt 0:00:03]} 5. Bxc4 {[%emt 0:00:06]} c5 {[%emt 0:00:02]} 6. O-O {[%emt 0:00:07]} Nc6 {[%emt 0:00:05]} 7. Qe2 {[%emt 0:00:52]} a6 {[%emt 0:00:05]} 8. Nc3 {[%emt 0:00:31]} b5 {[%emt 0:00:17]} 9. Bb3 {[%emt 0:00:07]} Bb7 {[%emt 0:00:12]} 10. Rd1 {[%emt 0:02:17]} Qb6 {[%emt 0:00:04] 10...Be7 erhält neuerdings viel Aufmerksamkeit.} 11. d5 {[%emt 0:05:30] D28: Angenommenes Damengambit (Hauptvariante 7.De2 nebst Sc6).} exd5 {[%emt 0:00:04]} 12. Nxd5 {[%emt 0:00:05]} Nxd5 {[%emt 0:00:06]} 13. Bxd5 {[%emt 0:00:04]} Be7 {[%emt 0:05:15]} 14. e4 {[%emt 0:02:03]} O-O {[%emt 0:01:20]} 15. Be3 {[%emt 0:01:44]} Nb4 {[%emt 0:01:10]} 16. Bxb7 {[%emt 0:02:02]} Qxb7 {[%emt 0:00:03]} 17. a3 {[%emt 0:00:06]} Nc6 {[%emt 0:00:14]} 18. Rd5 {[%emt 0:00:57]} Rfd8 $146 {[%emt 0:08:06]} ({Predecessor:} 18... c4 19. Rad1 Rad8 20. h4 Rfe8 21. h5 h6 22. Qd2 Bf8 23. Qc2 Qc7 24. g3 Na5 {0-1 Sarana,A (2685)-Iturrizaga Bonelli,E (2617) Speed Chess Q2 KO Win blitz 2023 (2.1)}) 19. Rad1 {[%emt 0:02:36]} c4 {[%emt 0:01:31]} 20. Nd4 {[%emt 0:24:34]} Nxd4 {[%emt 0:09:42]} 21. Bxd4 {[%emt 0:01:24]} Rxd5 {[%emt 0:08:15]} 22. exd5 {[%emt 0:00:03]} Rd8 {[%emt 0:00:41]} 23. Bc3 {[%emt 0:00:18]} Bf8 {[%emt 0:05:23]} 24. Qd2 {[%emt 0:01:56]} h6 {[%emt 0:09:13]} 25. h3 {[%emt 0:01:23]} Rd7 {[%emt 0:02:09]} 26. Qd4 {[%emt 0:00:55]} Qa8 {[%emt 0:04:25]} 27. Qe5 {[%emt 0:02:03]} a5 {[%emt 0:08:50]} 28. d6 {[%emt 0:20:44]} Qb8 {[%emt 0:02:31]} 29. Rd5 {[%emt 0:14:39]} b4 {[%emt 0:01:43]} 30. axb4 {[%emt 0:00:09]} axb4 {[%emt 0:00:08]} 31. Rb5 {[%emt 0:00:06]} Rb7 {[%emt 0:19:23]} 32. Rxb7 {[%emt 0:09:16]} Qxb7 {[%emt 0:00:01]} 33. Bd4 {[%emt 0:00:18]} Qc6 {[%emt 0:01:18]} 34. Bc5 {[%emt 0:01:32]} c3 $1 {[%emt 0:01:17]} 35. bxc3 {[%emt 0:01:19]} b3 {[%emt 0:01:27]} 36. d7 $1 {[%emt 0:03:22]} (36. Ba3 $2 Bxd6 37. Qxd6 Qxd6 38. Bxd6 b2 $19) 36... Qxd7 $1 {[%emt 0:00:38]} (36... Bxc5 $2 37. d8=Q+ (37. d8=B $2 Bd6 $19) 37... Kh7 38. Qf5+ Qg6 39. Qxg6+ (39. Qxc5 b2 $18) 39... fxg6 40. Qb8 $18) 37. Qb8 {[%emt 0:01:42]} Qd1+ $1 {[%emt 0:05:02]} 38. Kh2 {[%emt 0:00:02]} b2 $1 {[%emt 0:00:14]} 39. Qxf8+ {[%emt 0:00:05]} Kh7 {[%emt 0:00:02]} 40. Bd4 $1 {[%emt 0:00:07]} (40. Qxf7 $2 b1=Q (40... b1=B 41. Bf8) 41. Bd4 Qh1+ (41... Qg1+ $2 42. Kg3 $19) 42. Kg3 Qd3+ 43. f3 Qg6+ 44. Qxg6+ Kxg6 $19) 40... f6 {[%emt 0:01:56]} 41. Bxf6 $1 {[%emt 0:30:21]} gxf6 {[%emt 0:04:52]} 42. Qf7+ {[%emt 0:00:00]} Kh8 {[%emt 0:00:00]} 43. Qxf6+ {[%emt 0:00:00]} Kg8 {[%emt 0:05:44]} 44. Qe6+ {[%emt 0:00:00]} (44. Qxh6 b1=Q (44... b1=B 45. Qg5+ Kf7 46. Qf4+ Kg8 47. Qc4+ Kh7 48. Qc7+ Kg8 49. c4 $14) 45. Qe6+ Kf8 46. Qh6+ Kf7 47. Qf4+ Kg6 48. Qg3+ Kf5 49. Qg8 Qg1+ 50. Kg3 Qd3+ 51. Kh4 Qxf2+ (51... Qxc3 $2 52. Qg4+ Kf6 53. Qf4+ Ke7 54. Qe4+ Kd6 55. Qg6+ Kc5 56. Qf5+ Kb4 57. Qf4+ Ka3 58. Qg3 $19) 52. Kh5 Qfe2+ (52... Qxc3 53. g3 Qff3+ 54. g4+ Kf4 55. Qf7+ Kg3 56. Qxf3+ Qxf3 57. Kg6 Kxh3 58. Kg7 Kxg4 59. Kg6 Qf4 60. Kg7 Kg5 61. Kh7 Kf6 62. Kg8 Qg4+ 63. Kh8 Qg7#) 53. Kh4 Qe7+ (53... Qxc3 54. g4+ Ke4 55. Qa8+ Ke3 56. Qe8+ Kf3 57. Qxe2+ Kxe2 58. Kg5 Qe5+ 59. Kh6 Kf3 60. Kg6 Kf4 61. Kf7 Kg5 62. h4+ Kxg4 63. Kg6 Kxh4 64. Kh6 Qg5+ 65. Kh7 Kh5 66. Kh8 Kg6 67. Kg8 Qd8#) 54. Kh5 Qb5 (54... Qxc3 55. Qg4+ Ke5 56. Qe2+ Kf6 57. Qxe7+ Kxe7 58. Kg5 Qf6+ 59. Kg4 Qf2 60. h4 Kf6 61. h5 Ke5 62. g3 Qf5+ 63. Kh4 Ke4 64. g4 Qf4 65. Kh3 Kf3 66. Kh4 Qxg4#) (54... Qde2+ 55. g4+ Kf4 56. Qb8+ Kf3 57. Qa8+ Kg3 58. Qg8 Qh4+ 59. Kg6 Qe4+ 60. Kg7 Qe5+ 61. Kg6 Qef6#) 55. Qg4+ Kf6+ 56. Kh4 Qbe5) 44... Kg7 {[%emt 0:00:40]} 45. Qe5+ {[%emt 0:00:00]} Kf7 {[%emt 0:00:21]} 46. Qf4+ {[%emt 0:00:00]} Ke6 $2 {[%emt 0:00:41][%mdl 8192]} (46... Ke7 $11 47. Qe3+ (47. Qxh6 $2 Qd6+ 48. Qxd6+ Kxd6 $19) 47... Kd7 48. Qa7+ Kc6 49. Qa8+ Kc7 50. Qa7+ Kc6 51. Qa6+ Kc7 52. Qc4+ Kd8 53. Qg8+ Ke7 54. Qg7+ Ke6 55. Qg6+ (55. Qxh6+ $2 Kd5 $19) 55... Kd7 56. Qf5+ (56. Qxh6 $2 b1=Q $19) 56... Kd6 57. Qf4+ Kd7 58. Qf5+ Kd6 59. Qf8+ Kd7 60. Qf5+) 47. Qe4+ $18 {[%emt 0:00:00]} (47. Qxh6+ $2 {ist das falsche Schlagen.} Kd5 48. f3 b1=Q $19 (48... b1=B 49. Qf8 $16)) 47... Kf6 {[%emt 0:02:13]} 48. Qc6+ {[%emt 0:00:00]} Kf5 {[%emt 0:00:03]} 49. Qb5+ {[%emt 0:00:00]} (49. Qxh6 b1=Q (49... b1=B $2 {geht unter.} 50. h4 $18) 50. Qh7+ Kf6 51. Qh6+ Qg6 52. Qf8+ Qf7 (52... Ke6 $2 53. h4 $19) 53. Qh8+ Kg6 $19) 49... Ke4 {[%emt 0:00:04]} 50. f3+ {[%emt 0:00:00]} Ke3 {[%emt 0:01:02]} 51. Qb6+ {[%emt 0:00:00]} Ke2 {[%emt 0:00:43]} 52. Qxb2+ {[%emt 0:00:00]} Kf1 {[%emt 0:00:04]} 53. f4 {[%emt 0:00:00]} h5 {[%emt 0:00:32]} 54. Qb5+ {[%emt 0:00:00]} Ke1 {[%emt 0:00:55]} 55. Qe5+ {[%emt 0:00:00]} Kf1 {[%emt 0:00:07]} 56. Qe3 {[%emt 0:00:00]} Qd6 {[%emt 0:00:21]} 57. Qg1+ {[%emt 0:00:00]} Ke2 {[%emt 0:00:02]} 58. Qd4 {[%emt 0:00:00]} Qg6 {[%emt 0:00:31]} 59. Qd5 {[%emt 0:00:00]} h4 {[%emt 0:00:55]} 60. Qf3+ {[%emt 0:00:00]} Ke1 {[%emt 0:00:21]} 61. f5 {[%emt 0:00:00]} Qf6 {[%emt 0:03:57]} 62. Qe4+ {[%emt 0:00:00]} 1-0

[Event "40th Cappelle Open 2024"]
[Site "Cappelle-la-Grande"]
[Date "2024.03.06"]
[Round "6.10"]
[White "Nikolov, Momchil"]
[Black "Nanjo, Ryosuke"]
[Result "1/2-1/2"]
[ECO "E54"]
[WhiteElo "2453"]
[BlackElo "2346"]
[Annotator "TA"]
[PlyCount "71"]
[EventDate "2024.03.02"]
[EventType "swiss"]
[EventCountry "FRA"]
[SourceTitle "playchess.com"]
[Source "ChessBase"]
[SourceQuality "1"]
[TimeControl "40/5400+30:1800+30"]

{[%evp 20,71,0,0,0,0,10,0,0,10,0,0,0,0,15,0,2,3,10,27,6,0,0,5,12,17,15,23,12,-12,-4,-7,-12,-7,0,0,-2,-8,0,0,0,0,0,0,0,0,0,0,0,0,0,0,0,0]} 1. d4 {[%emt 0:05:33]} Nf6 {[%emt 0:00:07]} 2. c4 {[%emt 0:00:06]} e6 {[%emt 0:00:05]} 3. Nc3 {[%emt 0:00:07]} Bb4 {[%emt 0:00:07]} 4. e3 {[%emt 0:00:07][%cal Be2e3,Be3d4][%mdl 32]} O-O {[%emt 0:00:10]} 5. Bd3 {[%emt 0:00:17]} d5 {[%emt 0:00:13]} 6. Nf3 {[%emt 0:00:49]} dxc4 {[%emt 0:00:17]} 7. Bxc4 {[%emt 0:00:08]} c5 {[%emt 0:00:11]} 8. O-O {[%emt 0:00:41]} cxd4 {[%emt 0:00:07]} 9. exd4 {[%emt 0:00:08]} b6 {[%emt 0:00:11]} 10. Qe2 {[%emt 0:00:35]} Bb7 {[%emt 0:01:21]} 11. Rd1 {[%emt 0:00:37]} h6 {[%emt 0:00:25] Wards off Bg5} 12. Bf4 {[%emt 0:03:53]} Nc6 {[%emt 0:00:26]} 13. d5 {[%emt 0:12:11]} exd5 {[%emt 0:00:06]} 14. Nxd5 {[%emt 0:07:14]} Nxd5 {[%emt 0:00:06]} 15. Bxd5 {[%emt 0:00:13]} Qf6 {[%emt 0:00:10]} 16. Be3 {[%emt 0:04:03]} Rac8 {[%emt 0:16:41]} 17. a3 {[%emt 0:04:54]} Bd6 {[%emt 0:02:00]} 18. Rd2 {[%emt 0:01:46]} Bf4 {[%emt 0:12:23]} 19. Bxf4 {[%emt 0:01:02]} Qxf4 {[%emt 0:00:09]} 20. Rad1 {[%emt 0:02:41]} Rfe8 {[%emt 0:19:53]} 21. Qb5 {[%emt 0:01:02]} Na5 {[%emt 0:02:05][%cal Bc6a5,Ba5b7,Bb7c5,Bc5e6][%mdl 32]} 22. Rd4 {[%emt 0:22:13]} Qf6 {[%emt 0:10:18]} 23. Bxb7 {[%emt 0:02:47]} Nxb7 {[%emt 0:00:02]} 24. Qa6 {[%emt 0:09:23] The position is equal.} Nc5 {[%emt 0:00:35]} 25. Qb5 {[%emt 0:04:42]} (25. Qxa7 $2 {perishes.} Ra8 26. Qc7 Ne6 27. Qxb6 Nxd4 28. Qxf6 Ne2+ (28... gxf6 29. Rxd4 Reb8 30. g3 $19) 29. Kf1 gxf6 $19) 25... a6 {[%emt 0:15:12]} 26. Qb4 {[%emt 0:03:27]} Re2 {[%emt 0:01:23] Threatening ...Ne6.} (26... a5 $5 27. Qb5 $8 Re6 $11) 27. h3 {[%emt 0:02:52]} Ne6 {[%emt 0:02:21]} 28. R4d2 {[%emt 0:01:55]} Rxd2 {[%emt 0:00:26]} 29. Rxd2 {[%emt 0:00:34]} b5 {[%emt 0:06:43]} 30. Qe4 {[%emt 0:01:09]} Ng5 {[%emt 0:05:01]} 31. Nxg5 {[%emt 0:00:31]} Qxg5 {[%emt 0:00:04]} 32. Re2 {[%emt 0:01:38]} Qf6 {[%emt 0:00:59]} 33. g3 {[%emt 0:00:59]} g6 {[%emt 0:02:06]} 34. Kg2 {[%emt 0:00:44]} Kg7 {[%emt 0:00:21]} 35. Rd2 {[%emt 0:02:16]} h5 {[%emt 0:01:36]} 36. h4 {[%emt 0:00:32] An even fight not without its subleties.   Weighted Error Value: White=0.02 (flawless) /Black=0.02 (flawless) .  OK:         	White=15    	Black=11} 1/2-1/2

[Event "40th Cappelle Open 2024"]
[Site "Cappelle-la-Grande"]
[Date "2024.03.06"]
[Round "6.11"]
[White "Molenda, Marcin"]
[Black "Firat, Burak"]
[Result "1/2-1/2"]
[ECO "B11"]
[WhiteElo "2377"]
[BlackElo "2439"]
[Annotator "TA"]
[PlyCount "42"]
[EventDate "2024.03.02"]
[EventType "swiss"]
[EventCountry "FRA"]
[SourceTitle "playchess.com"]
[Source "ChessBase"]
[SourceQuality "1"]
[TimeControl "40/5400+30:1800+30"]

{[%evp 10,42,27,26,27,32,27,11,11,0,0,0,9,0,6,0,0,0,7,-7,33,33,42,40,49,25,46,0,0,4,14,0,17,8,16]} 1. e4 {[%emt 0:00:02]} c6 {[%emt 0:02:59]} 2. Nf3 {[%emt 0:07:27]} d5 {[%emt 0:01:27]} 3. Nc3 {[%emt 0:00:11]} dxe4 {[%emt 0:02:01]} 4. Nxe4 {[%emt 0:00:06]} Nf6 {[%emt 0:00:22]} 5. Qe2 {[%emt 0:00:31]} Nxe4 {[%emt 0:04:11]} 6. Qxe4 {[%emt 0:00:18]} Nd7 {[%emt 0:00:09]} 7. Bc4 {[%emt 0:01:03] Black must now prevent Ng5.} Nf6 {[%emt 0:00:24]} 8. Qe2 {[%emt 0:00:54]} Bf5 {[%emt 0:17:53]} 9. Ne5 {[%emt 0:03:46][%csl Ge5][%cal Rc4f7] [#]} e6 {[%emt 0:01:11]} 10. O-O {[%emt 0:05:30]} Qd4 {[%emt 0:13:16][%cal Of5e4]} 11. c3 {[%emt 0:06:28]} Qe4 {[%emt 0:07:43]} 12. d4 {[%emt 0:01:36]} Qxe2 {[%emt 0:00:39]} 13. Bxe2 {[%emt 0:00:05]} Be7 {[%emt 0:01:13]} 14. Bf4 {[%emt 0:02:52][%cal Bc1f4,Bf4g3,Bg3f2][%mdl 32]} O-O {[%emt 0:01:34]} 15. g4 {[%emt 0:03:09]} Be4 {[%emt 0:15:35]} 16. f3 {[%emt 0:00:48]} Bg6 {[%emt 0:00:02]} 17. Bg3 {[%emt 0:30:37]} c5 {[%emt 0:05:09]} 18. Nxg6 {[%emt 0:00:56]} (18. dxc5 $14 Bxc5+ 19. Bf2 Bxf2+ 20. Kxf2 (20. Rxf2 Rad8 $11)) 18... hxg6 $11 {[%emt 0:00:06] The position is equal.} 19. Bf2 {[%emt 0:04:11]} Rac8 {[%emt 0:01:25]} 20. Rfd1 {[%emt 0:02:06]} cxd4 {[%emt 0:03:28]} 21. Rxd4 {[%emt 0:01:24]} Bc5 {[%emt 0:01:21] Weighted Error Value: White=0.10 (very precise) /Black=0.06 (flawless) .  Mistake:       	White=1     	---        Inaccurate:     	---       	Black=1      OK:         	White=2     	Black=6      Best:        	---       	Black=2} 1/2-1/2